[Event "Titled Tuesday Blitz April 18 Late 2023"]
[White "Vargas Rodriguez, Wilver"]
[Black "Melikhov, Evgeny V."]
[WhiteFideId "3509672"]
[BlackFideId "4122046"]
[WhiteElo "2224"]
[BlackElo "2158"]
[Result "0-1"]
[Round "02"]
[TimeControl "180+2"]
[Date "2023.04.18"]
[WhiteClock "0:00:04"]
[BlackClock "0:00:04"]

1. e4 {[%clk 0:03:00]}  c5 {[%clk 0:02:59]} 2. Nf3 {[%clk 0:02:59]}  d6 {[%clk 0:02:59]} 3. d4 {[%clk 0:02:59]}  cxd4 {[%clk 0:02:59]} 4. Nxd4 {[%clk 0:02:55]}  Nf6 {[%clk 0:02:59]} 5. Nc3 {[%clk 0:02:55]}  a6 {[%clk 0:03:00]} 6. Bg5 {[%clk 0:02:53]}  e6 {[%clk 0:03:00]} 7. f4 {[%clk 0:02:53]}  Nbd7 {[%clk 0:03:00]} 8. Qf3 {[%clk 0:02:50]}  Qc7 {[%clk 0:02:59]} 9. Bd3 {[%clk 0:02:47]}  b5 {[%clk 0:02:59]} 10. O-O-O {[%clk 0:02:46]}  Bb7 {[%clk 0:02:59]} 11. Rhe1 {[%clk 0:02:27]}  O-O-O {[%clk 0:02:57]} 12. a3 {[%clk 0:02:03]}  Kb8 {[%clk 0:02:54]} 13. Bh4 {[%clk 0:02:00]}  Rc8 {[%clk 0:02:51]} 14. g4 {[%clk 0:01:46]}  Nc5 {[%clk 0:01:55]} 15. Kb1 {[%clk 0:01:33]}  Nfd7 {[%clk 0:01:38]} 16. Bg3 {[%clk 0:01:08]}  Nb6 {[%clk 0:01:33]} 17. Qe2 {[%clk 0:00:53]}  Nba4 {[%clk 0:01:24]} 18. Na2 {[%clk 0:00:32]}  Nxd3 {[%clk 0:00:54]} 19. Qxd3 {[%clk 0:00:29]}  Qc4 {[%clk 0:00:44]} 20. Qxc4 {[%clk 0:00:29]}  bxc4 {[%clk 0:00:44]} 21. Nb4 {[%clk 0:00:26]}  a5 {[%clk 0:00:42]} 22. Na2 {[%clk 0:00:24]}  h5 {[%clk 0:00:37]} 23. g5 {[%clk 0:00:23]}  h4 {[%clk 0:00:36]} 24. Bf2 {[%clk 0:00:22]}  g6 {[%clk 0:00:28]} 25. h3 {[%clk 0:00:21]}  Bg7 {[%clk 0:00:26]} 26. c3 {[%clk 0:00:21]}  Nc5 {[%clk 0:00:23]} 27. e5 {[%clk 0:00:16]}  dxe5 {[%clk 0:00:21]} 28. fxe5 {[%clk 0:00:16]}  Nd3 {[%clk 0:00:20]} 29. Re2 {[%clk 0:00:14]}  Nxf2 {[%clk 0:00:11]} 30. Rxf2 {[%clk 0:00:15]}  Bxe5 {[%clk 0:00:11]} 31. Rxf7 {[%clk 0:00:14]}  Be4+ {[%clk 0:00:09]} 32. Ka1 {[%clk 0:00:13]}  Bf5 {[%clk 0:00:08]} 33. Nxf5 {[%clk 0:00:12]}  gxf5 {[%clk 0:00:06]} 34. Rdd7 {[%clk 0:00:13]}  Rc7 {[%clk 0:00:06]} 35. Nc1 {[%clk 0:00:10]}  Rxd7 {[%clk 0:00:06]} 36. Rxd7 {[%clk 0:00:11]}  f4 {[%clk 0:00:06]} 37. Rf7 {[%clk 0:00:09]}  Kc8 {[%clk 0:00:04]} 38. Ne2 {[%clk 0:00:09]}  Kd8 {[%clk 0:00:04]} 39. Nxf4 {[%clk 0:00:09]}  Ke8 {[%clk 0:00:04]} 40. g6 {[%clk 0:00:09]}  Rg8 {[%clk 0:00:04]} 41. Nxe6 {[%clk 0:00:05]}  Rxg6 {[%clk 0:00:03]} 42. Rf8+ {[%clk 0:00:03]}  Ke7 {[%clk 0:00:02]} 43. Ra8 {[%clk 0:00:01]}  Kxe6 {[%clk 0:00:02]} 44. Ra6+ {[%clk 0:00:01]}  Kf5 {[%clk 0:00:02]} 45. Rxa5 {[%clk 0:00:01]}  Ke4 {[%clk 0:00:03]} 46. Rc5 {[%clk 0:00:01]}  Rg3 {[%clk 0:00:03]} 47. Rxc4+ {[%clk 0:00:01]}  Kd3 {[%clk 0:00:03]} 48. Rd4+ {[%clk 0:00:01]}  Bxd4 {[%clk 0:00:02]} 49. cxd4 {[%clk 0:00:02]}  Kc2 {[%clk 0:00:02]} 50. Ka2 {[%clk 0:00:03]}  Rg2 {[%clk 0:00:02]} 51. d5 {[%clk 0:00:04]}  Rd2 {[%clk 0:00:02]} 52. d6 {[%clk 0:00:05]}  Rxd6 {[%clk 0:00:03]} 53. b4 {[%clk 0:00:05]}  Rd3 {[%clk 0:00:03]} 54. a4 {[%clk 0:00:06]}  Rb3 {[%clk 0:00:03]} 55. b5 {[%clk 0:00:05]}  Rb4 {[%clk 0:00:02]} 56. Ka3 {[%clk 0:00:06]}  Rb3+ {[%clk 0:00:03]} 57. Ka2 {[%clk 0:00:06]}  Kc3 {[%clk 0:00:03]} 58. a5 {[%clk 0:00:04]}  Rxb5 {[%clk 0:00:03]} 59. a6 {[%clk 0:00:05]}  Ra5+ {[%clk 0:00:03]} 60. Kb1 {[%clk 0:00:05]}  Rxa6 {[%clk 0:00:04]} 61. Kc1 {[%clk 0:00:04]}  Ra1# {[%clk 0:00:04]} 0-1


[Site "https://www.chess.com"]

[Event "Titled Tuesday Blitz April 18 Late 2023"]
[White "Delorme, Axel"]
[Black "ritanovikova"]
[WhiteFideId "632023"]
[WhiteElo "2478"]
[BlackElo "2117"]
[Result "0-1"]
[Round "02"]
[TimeControl "180+2"]
[Date "2023.04.18"]
[WhiteClock "0:00:50"]
[BlackClock "0:01:36"]

1. e4 {[%clk 0:03:00]}  d5 {[%clk 0:02:59]} 2. exd5 {[%clk 0:02:55]}  Qxd5 {[%clk 0:03:00]} 3. Nc3 {[%clk 0:02:56]}  Qd6 {[%clk 0:03:00]} 4. d4 {[%clk 0:02:57]}  Nf6 {[%clk 0:03:00]} 5. Nf3 {[%clk 0:02:56]}  c6 {[%clk 0:03:00]} 6. g3 {[%clk 0:02:55]}  Bg4 {[%clk 0:03:00]} 7. Bg2 {[%clk 0:02:55]}  e6 {[%clk 0:03:01]} 8. O-O {[%clk 0:02:51]}  Nbd7 {[%clk 0:03:01]} 9. Bf4 {[%clk 0:02:51]}  Qb4 {[%clk 0:03:01]} 10. Qd2 {[%clk 0:02:38]}  Bd6 {[%clk 0:02:57]} 11. Ne5 {[%clk 0:02:24]}  Nd5 {[%clk 0:02:41]} 12. Bxd5 {[%clk 0:01:52]}  exd5 {[%clk 0:02:36]} 13. Nxd7 {[%clk 0:01:51]}  Bxd7 {[%clk 0:02:32]} 14. Bxd6 {[%clk 0:01:44]}  Qxd6 {[%clk 0:02:32]} 15. Rfe1+ {[%clk 0:01:44]}  Be6 {[%clk 0:02:32]} 16. Re5 {[%clk 0:01:43]}  O-O {[%clk 0:02:24]} 17. Rae1 {[%clk 0:01:42]}  Rfe8 {[%clk 0:02:24]} 18. Kg2 {[%clk 0:01:27]}  Bd7 {[%clk 0:02:21]} 19. Rxe8+ {[%clk 0:01:25]}  Rxe8 {[%clk 0:02:22]} 20. Rxe8+ {[%clk 0:01:26]}  Bxe8 {[%clk 0:02:23]} 21. Qe3 {[%clk 0:01:26]}  Bd7 {[%clk 0:02:15]} 22. a3 {[%clk 0:01:26]}  Qe6 {[%clk 0:02:05]} 23. Qxe6 {[%clk 0:01:25]}  Bxe6 {[%clk 0:02:06]} 24. b4 {[%clk 0:01:19]}  Bf5 {[%clk 0:02:05]} 25. Na4 {[%clk 0:01:19]}  Bxc2 {[%clk 0:02:01]} 26. Nc5 {[%clk 0:01:12]}  b6 {[%clk 0:02:01]} 27. Nd7 {[%clk 0:01:06]}  f6 {[%clk 0:01:59]} 28. Nb8 {[%clk 0:01:03]}  Ba4 {[%clk 0:01:54]} 29. Kf3 {[%clk 0:00:58]}  Kf7 {[%clk 0:01:54]} 30. Kf4 {[%clk 0:00:59]}  Ke7 {[%clk 0:01:51]} 31. h4 {[%clk 0:00:58]}  Kd8 {[%clk 0:01:51]} 32. Kf5 {[%clk 0:00:54]}  Kc8 {[%clk 0:01:46]} 33. Ke6 {[%clk 0:00:51]}  Kxb8 {[%clk 0:01:39]} 34. Kf7 {[%clk 0:00:51]}  c5 {[%clk 0:01:36]} 35. bxc5 {[%clk 0:00:50]}  bxc5 {[%clk 0:01:36]} 0-1


[Site "https://www.chess.com"]

[Event "Titled Tuesday Blitz April 18 Late 2023"]
[White "Winkels, Marcel"]
[Black "Gerbelli Neto, Eduardo"]
[WhiteFideId "1003887"]
[BlackFideId "2103281"]
[WhiteElo "1900"]
[BlackElo "2178"]
[Result "1-0"]
[Round "02"]
[TimeControl "180+2"]
[Date "2023.04.18"]
[WhiteClock "0:00:10"]
[BlackClock "0:00:36"]

1. d4 {[%clk 0:03:00]}  d5 {[%clk 0:03:00]} 2. Nc3 {[%clk 0:03:01]}  Nf6 {[%clk 0:02:59]} 3. Bf4 {[%clk 0:03:01]}  Bf5 {[%clk 0:02:58]} 4. e3 {[%clk 0:03:00]}  e6 {[%clk 0:02:58]} 5. Nf3 {[%clk 0:03:00]}  Bb4 {[%clk 0:02:56]} 6. Bd3 {[%clk 0:02:57]}  Bg6 {[%clk 0:02:54]} 7. Ne5 {[%clk 0:02:55]}  Nbd7 {[%clk 0:02:53]} 8. O-O {[%clk 0:02:53]}  Bxd3 {[%clk 0:02:53]} 9. cxd3 {[%clk 0:02:51]}  O-O {[%clk 0:02:51]} 10. Rc1 {[%clk 0:02:44]}  Bd6 {[%clk 0:02:46]} 11. Qf3 {[%clk 0:02:38]}  a6 {[%clk 0:02:41]} 12. g4 {[%clk 0:02:34]}  Qe7 {[%clk 0:02:34]} 13. g5 {[%clk 0:02:33]}  Ne8 {[%clk 0:02:33]} 14. Kh1 {[%clk 0:02:30]}  f6 {[%clk 0:02:33]} 15. gxf6 {[%clk 0:02:22]}  Nexf6 {[%clk 0:02:29]} 16. Qh3 {[%clk 0:02:09]}  c5 {[%clk 0:02:13]} 17. Rg1 {[%clk 0:01:56]}  Bxe5 {[%clk 0:02:08]} 18. dxe5 {[%clk 0:01:51]}  Ne8 {[%clk 0:02:08]} 19. d4 {[%clk 0:01:48]}  g6 {[%clk 0:01:55]} 20. Rg2 {[%clk 0:01:46]}  Ng7 {[%clk 0:01:55]} 21. Bh6 {[%clk 0:01:44]}  Rf5 {[%clk 0:01:52]} 22. Bxg7 {[%clk 0:01:38]}  Kxg7 {[%clk 0:01:53]} 23. Rcg1 {[%clk 0:01:37]}  Raf8 {[%clk 0:01:52]} 24. f4 {[%clk 0:01:36]}  cxd4 {[%clk 0:01:52]} 25. Ne2 {[%clk 0:01:32]}  dxe3 {[%clk 0:01:47]} 26. Qxe3 {[%clk 0:01:31]}  Nc5 {[%clk 0:01:43]} 27. Rg4 {[%clk 0:01:28]}  Ne4 {[%clk 0:01:42]} 28. Nd4 {[%clk 0:01:26]}  Rh5 {[%clk 0:01:31]} 29. a3 {[%clk 0:01:16]}  Rh3 {[%clk 0:01:30]} 30. Qe1 {[%clk 0:01:02]}  Rd3 {[%clk 0:01:18]} 31. Ne2 {[%clk 0:00:48]}  Qc5 {[%clk 0:01:08]} 32. R4g2 {[%clk 0:00:42]}  Re3 {[%clk 0:00:52]} 33. h4 {[%clk 0:00:39]}  Rxf4 {[%clk 0:00:46]} 34. Nxf4 {[%clk 0:00:30]}  Rxe1 {[%clk 0:00:46]} 35. Nxe6+ {[%clk 0:00:29]}  Kf7 {[%clk 0:00:46]} 36. Nxc5 {[%clk 0:00:28]}  Rxg1+ {[%clk 0:00:46]} 37. Kxg1 {[%clk 0:00:26]}  Nxc5 {[%clk 0:00:47]} 38. Rc2 {[%clk 0:00:23]}  b6 {[%clk 0:00:46]} 39. b4 {[%clk 0:00:22]}  Nd3 {[%clk 0:00:44]} 40. Rc7+ {[%clk 0:00:20]}  Ke6 {[%clk 0:00:44]} 41. Rc6+ {[%clk 0:00:20]}  Kxe5 {[%clk 0:00:45]} 42. Rxb6 {[%clk 0:00:20]}  d4 {[%clk 0:00:40]} 43. Rxa6 {[%clk 0:00:20]}  Nf4 {[%clk 0:00:41]} 44. Kf2 {[%clk 0:00:19]}  Nd5 {[%clk 0:00:38]} 45. Ra5 {[%clk 0:00:18]}  Ke4 {[%clk 0:00:38]} 46. Ke2 {[%clk 0:00:16]}  d3+ {[%clk 0:00:38]} 47. Kd2 {[%clk 0:00:16]}  Kd4 {[%clk 0:00:39]} 48. b5 {[%clk 0:00:15]}  Nb6 {[%clk 0:00:38]} 49. Ra6 {[%clk 0:00:11]}  Nc4+ {[%clk 0:00:38]} 50. Kd1 {[%clk 0:00:09]}  Kc3 {[%clk 0:00:38]} 51. Rc6 {[%clk 0:00:08]}  Kb3 {[%clk 0:00:34]} 52. Rxc4 {[%clk 0:00:08]}  Kxc4 {[%clk 0:00:34]} 53. b6 {[%clk 0:00:09]}  h6 {[%clk 0:00:32]} 54. b7 {[%clk 0:00:09]}  g5 {[%clk 0:00:33]} 55. b8=Q {[%clk 0:00:09]}  g4 {[%clk 0:00:33]} 56. Qf4+ {[%clk 0:00:09]}  Kc3 {[%clk 0:00:33]} 57. Qxg4 {[%clk 0:00:09]}  h5 {[%clk 0:00:34]} 58. Qxh5 {[%clk 0:00:09]}  Kb3 {[%clk 0:00:34]} 59. Qg4 {[%clk 0:00:09]}  Kxa3 {[%clk 0:00:34]} 60. Kd2 {[%clk 0:00:10]}  Kb2 {[%clk 0:00:35]} 61. h5 {[%clk 0:00:09]}  Kb3 {[%clk 0:00:36]} 62. h6 {[%clk 0:00:10]} 1-0


[Site "https://www.chess.com"]

[Event "Titled Tuesday Blitz April 18 Late 2023"]
[White "Brod, Manfred"]
[Black "Alexikov, Alexander"]
[WhiteFideId "1602110"]
[BlackFideId "14103958"]
[WhiteElo "2073"]
[BlackElo "2186"]
[Result "1/2-1/2"]
[Round "02"]
[TimeControl "180+2"]
[Date "2023.04.18"]
[WhiteClock "0:00:33"]
[BlackClock "0:00:01"]

1. e4 {[%clk 0:02:59]}  c5 {[%clk 0:02:59]} 2. Nf3 {[%clk 0:02:58]}  d6 {[%clk 0:03:00]} 3. d4 {[%clk 0:02:59]}  cxd4 {[%clk 0:02:59]} 4. Nxd4 {[%clk 0:02:59]}  Nf6 {[%clk 0:02:59]} 5. Nc3 {[%clk 0:02:59]}  a6 {[%clk 0:03:00]} 6. Be2 {[%clk 0:03:00]}  e5 {[%clk 0:02:59]} 7. Nb3 {[%clk 0:03:00]}  Be6 {[%clk 0:02:59]} 8. f4 {[%clk 0:02:59]}  Qc7 {[%clk 0:02:57]} 9. g4 {[%clk 0:02:58]}  h6 {[%clk 0:02:46]} 10. g5 {[%clk 0:02:55]}  hxg5 {[%clk 0:02:45]} 11. fxg5 {[%clk 0:02:55]}  Nfd7 {[%clk 0:02:43]} 12. Nd5 {[%clk 0:02:47]}  Bxd5 {[%clk 0:02:42]} 13. exd5 {[%clk 0:02:47]}  Nb6 {[%clk 0:02:31]} 14. Be3 {[%clk 0:02:42]}  N8d7 {[%clk 0:02:30]} 15. Qd2 {[%clk 0:02:36]}  Rc8 {[%clk 0:02:28]} 16. O-O-O {[%clk 0:02:33]}  Rh4 {[%clk 0:02:23]} 17. Kb1 {[%clk 0:02:23]}  Nc4 {[%clk 0:02:20]} 18. Bxc4 {[%clk 0:02:23]}  Rxc4 {[%clk 0:02:19]} 19. c3 {[%clk 0:02:20]}  a5 {[%clk 0:02:13]} 20. Nc1 {[%clk 0:02:16]}  a4 {[%clk 0:02:11]} 21. a3 {[%clk 0:02:16]}  Nc5 {[%clk 0:01:58]} 22. h4 {[%clk 0:02:13]}  Ne4 {[%clk 0:01:55]} 23. Qe1 {[%clk 0:02:10]}  Nxc3+ {[%clk 0:01:36]} 24. bxc3 {[%clk 0:02:10]}  Rxc3 {[%clk 0:01:36]} 25. Rh2 {[%clk 0:02:06]}  Rxa3 {[%clk 0:01:30]} 26. Rb2 {[%clk 0:02:05]}  Qc4 {[%clk 0:01:17]} 27. Bb6 {[%clk 0:02:00]}  Rc3 {[%clk 0:01:06]} 28. Ne2 {[%clk 0:01:51]}  Rb3 {[%clk 0:00:59]} 29. Rc1 {[%clk 0:01:44]}  Qd3+ {[%clk 0:00:58]} 30. Ka1 {[%clk 0:01:40]}  Ra3+ {[%clk 0:00:56]} 31. Ra2 {[%clk 0:01:40]}  Rxa2+ {[%clk 0:00:55]} 32. Kxa2 {[%clk 0:01:40]}  Qb3+ {[%clk 0:00:54]} 33. Ka1 {[%clk 0:01:40]}  Rxc1+ {[%clk 0:00:53]} 34. Qxc1 {[%clk 0:01:40]}  Qxb6 {[%clk 0:00:52]} 35. Qc8+ {[%clk 0:01:38]}  Qd8 {[%clk 0:00:52]} 36. Qxb7 {[%clk 0:01:39]}  Be7 {[%clk 0:00:51]} 37. Qb5+ {[%clk 0:01:35]}  Qd7 {[%clk 0:00:51]} 38. Nc3 {[%clk 0:01:31]}  Qxb5 {[%clk 0:00:46]} 39. Nxb5 {[%clk 0:01:31]}  Kd7 {[%clk 0:00:45]} 40. Nc3 {[%clk 0:01:30]}  f6 {[%clk 0:00:44]} 41. Ne4 {[%clk 0:01:27]}  f5 {[%clk 0:00:41]} 42. Ng3 {[%clk 0:01:25]}  g6 {[%clk 0:00:36]} 43. Ka2 {[%clk 0:01:21]}  Kc7 {[%clk 0:00:33]} 44. Ka3 {[%clk 0:01:21]}  Kb6 {[%clk 0:00:33]} 45. Kxa4 {[%clk 0:01:13]}  Kc5 {[%clk 0:00:33]} 46. h5 {[%clk 0:01:14]}  f4 {[%clk 0:00:18]} 47. Ne4+ {[%clk 0:01:07]}  Kxd5 {[%clk 0:00:17]} 48. h6 {[%clk 0:01:04]}  Kxe4 {[%clk 0:00:12]} 49. h7 {[%clk 0:01:04]}  f3 {[%clk 0:00:12]} 50. h8=Q {[%clk 0:01:03]}  Bxg5 {[%clk 0:00:11]} 51. Qh2 {[%clk 0:00:58]}  Bf4 {[%clk 0:00:10]} 52. Qc2+ {[%clk 0:00:56]}  Ke3 {[%clk 0:00:10]} 53. Kb3 {[%clk 0:00:53]}  f2 {[%clk 0:00:09]} 54. Qd1 {[%clk 0:00:53]}  e4 {[%clk 0:00:07]} 55. Kc4 {[%clk 0:00:49]}  g5 {[%clk 0:00:06]} 56. Qf1 {[%clk 0:00:45]}  g4 {[%clk 0:00:05]} 57. Kc3 {[%clk 0:00:44]}  g3 {[%clk 0:00:05]} 58. Kc2 {[%clk 0:00:42]}  d5 {[%clk 0:00:04]} 59. Kd1 {[%clk 0:00:42]}  Kf3 {[%clk 0:00:03]} 60. Qh1+ {[%clk 0:00:37]}  g2 {[%clk 0:00:02]} 61. Qh3+ {[%clk 0:00:37]}  Bg3 {[%clk 0:00:02]} 62. Qf5+ {[%clk 0:00:35]}  Ke3 {[%clk 0:00:02]} 63. Qg5+ {[%clk 0:00:34]}  Kf3 {[%clk 0:00:02]} 64. Qf5+ {[%clk 0:00:34]}  Bf4 {[%clk 0:00:02]} 65. Qh3+ {[%clk 0:00:33]}  Bg3 {[%clk 0:00:01]} 66. Qf5+ {[%clk 0:00:33]} 1/2-1/2


[Site "https://www.chess.com"]

[Event "Titled Tuesday Blitz April 18 Late 2023"]
[White "Aqib Javaid Butt"]
[Black "Yeritsyan, Hayk"]
[WhiteFideId "7801262"]
[BlackFideId "13307320"]
[WhiteElo "1659"]
[BlackElo "2396"]
[Result "0-1"]
[Round "02"]
[TimeControl "180+2"]
[Date "2023.04.18"]
[WhiteClock "0:00:01"]
[BlackClock "0:00:02"]

1. Nf3 {[%clk 0:03:00]}  d5 {[%clk 0:02:59]} 2. d4 {[%clk 0:02:59]}  Nf6 {[%clk 0:02:59]} 3. c4 {[%clk 0:02:58]}  c6 {[%clk 0:02:59]} 4. Qc2 {[%clk 0:02:59]}  g6 {[%clk 0:02:49]} 5. e3 {[%clk 0:02:59]}  Bf5 {[%clk 0:02:49]} 6. Bd3 {[%clk 0:03:00]}  Bxd3 {[%clk 0:02:49]} 7. Qxd3 {[%clk 0:03:01]}  Bg7 {[%clk 0:02:47]} 8. Nc3 {[%clk 0:03:01]}  O-O {[%clk 0:02:46]} 9. O-O {[%clk 0:03:01]}  e6 {[%clk 0:02:45]} 10. b3 {[%clk 0:03:01]}  Nbd7 {[%clk 0:02:45]} 11. Bb2 {[%clk 0:03:01]}  Re8 {[%clk 0:02:46]} 12. e4 {[%clk 0:03:00]}  dxc4 {[%clk 0:02:43]} 13. bxc4 {[%clk 0:02:56]}  e5 {[%clk 0:02:41]} 14. d5 {[%clk 0:02:55]}  Nc5 {[%clk 0:02:36]} 15. Qe2 {[%clk 0:02:54]}  cxd5 {[%clk 0:02:34]} 16. cxd5 {[%clk 0:02:47]}  Nfd7 {[%clk 0:02:25]} 17. Rac1 {[%clk 0:02:43]}  a6 {[%clk 0:02:24]} 18. d6 {[%clk 0:02:26]}  Qb6 {[%clk 0:02:18]} 19. Nd5 {[%clk 0:02:24]}  Qxd6 {[%clk 0:02:16]} 20. Rfd1 {[%clk 0:02:22]}  Rac8 {[%clk 0:02:01]} 21. Ng5 {[%clk 0:01:36]}  h6 {[%clk 0:01:44]} 22. Nf3 {[%clk 0:01:13]}  Kh7 {[%clk 0:01:41]} 23. Rc2 {[%clk 0:01:06]}  Rc6 {[%clk 0:01:38]} 24. Rcd2 {[%clk 0:01:05]}  Qe6 {[%clk 0:01:23]} 25. Nb4 {[%clk 0:01:04]}  Rc7 {[%clk 0:01:21]} 26. Rd6 {[%clk 0:00:58]}  Qe7 {[%clk 0:01:07]} 27. R1d2 {[%clk 0:00:33]}  Rec8 {[%clk 0:01:02]} 28. h4 {[%clk 0:00:31]}  Ne6 {[%clk 0:00:53]} 29. Nd5 {[%clk 0:00:27]}  Qxd6 {[%clk 0:00:15]} 30. Nf6+ {[%clk 0:00:27]}  Nxf6 {[%clk 0:00:13]} 31. Rxd6 {[%clk 0:00:27]}  Ng4 {[%clk 0:00:14]} 32. g3 {[%clk 0:00:18]}  Rc2 {[%clk 0:00:12]} 33. Rd2 {[%clk 0:00:17]}  R2c5 {[%clk 0:00:08]} 34. Qd1 {[%clk 0:00:15]}  h5 {[%clk 0:00:07]} 35. Kg2 {[%clk 0:00:14]}  R8c7 {[%clk 0:00:07]} 36. Rd5 {[%clk 0:00:13]}  Rc2 {[%clk 0:00:07]} 37. Bxe5 {[%clk 0:00:09]}  Rxf2+ {[%clk 0:00:06]} 38. Kh3 {[%clk 0:00:06]}  Rxf3 {[%clk 0:00:03]} 39. Qxf3 {[%clk 0:00:04]}  Nxe5 {[%clk 0:00:01]} 40. Rxe5 {[%clk 0:00:01]}  Bxe5 {[%clk 0:00:01]} 41. g4 {[%clk 0:00:01]}  Rc3 {[%clk 0:00:01]} 42. Kg2 {[%clk 0:00:01]}  Kg7 {[%clk 0:00:02]} 0-1


[Site "https://www.chess.com"]

[Event "Titled Tuesday Blitz April 18 Late 2023"]
[White "Manu_ChessExcelsior"]
[Black "Fernandez Garcia, Gumersindo"]
[BlackFideId "24516740"]
[WhiteElo "1967"]
[BlackElo "2093"]
[Result "0-1"]
[Round "02"]
[TimeControl "180+2"]
[Date "2023.04.18"]
[WhiteClock "0:00:06"]
[BlackClock "0:00:32"]

1. e4 {[%clk 0:03:00]}  c5 {[%clk 0:02:59]} 2. Nf3 {[%clk 0:02:59]}  e6 {[%clk 0:02:58]} 3. d4 {[%clk 0:02:57]}  cxd4 {[%clk 0:02:58]} 4. Nxd4 {[%clk 0:02:58]}  Nf6 {[%clk 0:02:58]} 5. Nc3 {[%clk 0:02:58]}  Nc6 {[%clk 0:02:59]} 6. g3 {[%clk 0:02:59]}  d5 {[%clk 0:02:57]} 7. exd5 {[%clk 0:02:52]}  exd5 {[%clk 0:02:50]} 8. Bg2 {[%clk 0:02:51]}  Bc5 {[%clk 0:02:47]} 9. Be3 {[%clk 0:02:02]}  Qb6 {[%clk 0:02:36]} 10. Na4 {[%clk 0:01:29]}  Qa5+ {[%clk 0:02:30]} 11. c3 {[%clk 0:01:24]}  Nxd4 {[%clk 0:02:22]} 12. Nxc5 {[%clk 0:01:08]}  Nf5 {[%clk 0:02:06]} 13. Nb3 {[%clk 0:00:46]}  Qa6 {[%clk 0:02:02]} 14. Bc5 {[%clk 0:00:35]}  Be6 {[%clk 0:01:53]} 15. Bf1 {[%clk 0:00:30]}  Qc6 {[%clk 0:01:52]} 16. Bd3 {[%clk 0:00:26]}  O-O-O {[%clk 0:01:43]} 17. O-O {[%clk 0:00:25]}  h5 {[%clk 0:01:31]} 18. Bxa7 {[%clk 0:00:24]}  h4 {[%clk 0:01:28]} 19. Nd4 {[%clk 0:00:20]}  Qd7 {[%clk 0:01:17]} 20. Nxe6 {[%clk 0:00:18]}  fxe6 {[%clk 0:01:15]} 21. Bb6 {[%clk 0:00:17]}  Rde8 {[%clk 0:01:13]} 22. Bxf5 {[%clk 0:00:15]}  exf5 {[%clk 0:01:13]} 23. Qf3 {[%clk 0:00:14]}  Qd6 {[%clk 0:01:03]} 24. Bd4 {[%clk 0:00:13]}  Qd7 {[%clk 0:00:56]} 25. Bxf6 {[%clk 0:00:12]}  gxf6 {[%clk 0:00:56]} 26. Rad1 {[%clk 0:00:13]}  Re4 {[%clk 0:00:55]} 27. Rfe1 {[%clk 0:00:11]}  Qe6 {[%clk 0:00:54]} 28. Rxe4 {[%clk 0:00:11]}  fxe4 {[%clk 0:00:55]} 29. Qf4 {[%clk 0:00:10]}  hxg3 {[%clk 0:00:54]} 30. hxg3 {[%clk 0:00:10]}  Qh3 {[%clk 0:00:46]} 31. f3 {[%clk 0:00:07]}  Qh1+ {[%clk 0:00:35]} 32. Kf2 {[%clk 0:00:07]}  Qxd1 {[%clk 0:00:35]} 33. Qf5+ {[%clk 0:00:08]}  Kb8 {[%clk 0:00:35]} 34. Qxf6 {[%clk 0:00:06]}  Qxf3+ {[%clk 0:00:32]} 35. Ke1 {[%clk 0:00:06]}  Qxf6 {[%clk 0:00:32]} 0-1


[Site "https://www.chess.com"]

[Event "Titled Tuesday Blitz April 18 Late 2023"]
[White "Marcziter, Dmitrii"]
[Black "Sanchez, Robert"]
[WhiteFideId "13900765"]
[BlackFideId "2034360"]
[WhiteElo "2162"]
[BlackElo "1963"]
[Result "1-0"]
[Round "02"]
[TimeControl "180+2"]
[Date "2023.04.18"]
[WhiteClock "0:00:31"]
[BlackClock "0:00:13"]

1. d4 {[%clk 0:03:00]}  d5 {[%clk 0:02:58]} 2. c4 {[%clk 0:03:00]}  c6 {[%clk 0:02:59]} 3. Nf3 {[%clk 0:03:00]}  Nf6 {[%clk 0:03:00]} 4. Nc3 {[%clk 0:03:00]}  dxc4 {[%clk 0:03:00]} 5. a4 {[%clk 0:02:59]}  Bf5 {[%clk 0:03:00]} 6. Nh4 {[%clk 0:02:59]}  Bc8 {[%clk 0:02:55]} 7. Nf3 {[%clk 0:02:58]}  Bf5 {[%clk 0:02:54]} 8. e3 {[%clk 0:02:58]}  e6 {[%clk 0:02:55]} 9. Bxc4 {[%clk 0:02:58]}  Nbd7 {[%clk 0:02:55]} 10. O-O {[%clk 0:02:58]}  Bb4 {[%clk 0:02:52]} 11. Qe2 {[%clk 0:02:58]}  Bg6 {[%clk 0:02:52]} 12. Bd2 {[%clk 0:02:54]}  O-O {[%clk 0:02:52]} 13. Rfd1 {[%clk 0:02:54]}  a5 {[%clk 0:02:51]} 14. Be1 {[%clk 0:02:53]}  Qe7 {[%clk 0:02:51]} 15. h3 {[%clk 0:02:53]}  e5 {[%clk 0:02:47]} 16. d5 {[%clk 0:02:52]}  Nb6 {[%clk 0:02:28]} 17. dxc6 {[%clk 0:02:47]}  bxc6 {[%clk 0:02:28]} 18. Bb3 {[%clk 0:02:46]}  Bh5 {[%clk 0:02:26]} 19. g4 {[%clk 0:02:44]}  Nxg4 {[%clk 0:02:27]} 20. hxg4 {[%clk 0:02:43]}  Bxg4 {[%clk 0:02:28]} 21. e4 {[%clk 0:02:37]}  Qf6 {[%clk 0:02:20]} 22. Rd3 {[%clk 0:02:36]}  Rad8 {[%clk 0:02:15]} 23. Rad1 {[%clk 0:02:31]}  Qg6 {[%clk 0:02:14]} 24. Nh4 {[%clk 0:01:57]}  Qh5 {[%clk 0:01:59]} 25. f3 {[%clk 0:01:56]}  Bc5+ {[%clk 0:01:55]} 26. Kg2 {[%clk 0:01:52]}  Bd7 {[%clk 0:01:34]} 27. Bg3 {[%clk 0:01:43]}  Be7 {[%clk 0:01:33]} 28. Rh1 {[%clk 0:01:39]}  Qg5 {[%clk 0:01:28]} 29. Qd2 {[%clk 0:01:31]}  Qf6 {[%clk 0:01:20]} 30. Rd1 {[%clk 0:01:25]}  h5 {[%clk 0:01:08]} 31. Qe3 {[%clk 0:01:21]}  g5 {[%clk 0:01:08]} 32. Nf5 {[%clk 0:01:21]}  Bxf5 {[%clk 0:01:08]} 33. Rxd8 {[%clk 0:01:19]}  Bxd8 {[%clk 0:01:04]} 34. exf5 {[%clk 0:01:18]}  Qxf5 {[%clk 0:01:04]} 35. Qe4 {[%clk 0:01:17]}  Qxe4 {[%clk 0:00:53]} 36. fxe4 {[%clk 0:01:17]}  Bf6 {[%clk 0:00:45]} 37. Rd6 {[%clk 0:01:15]}  Kg7 {[%clk 0:00:44]} 38. Rxc6 {[%clk 0:01:14]}  Nd7 {[%clk 0:00:45]} 39. Nd5 {[%clk 0:01:12]}  Rb8 {[%clk 0:00:41]} 40. Rc3 {[%clk 0:01:08]}  Bd8 {[%clk 0:00:38]} 41. Rd3 {[%clk 0:00:55]}  Nc5 {[%clk 0:00:37]} 42. Bxe5+ {[%clk 0:00:54]}  f6 {[%clk 0:00:36]} 43. Bxb8 {[%clk 0:00:54]}  Nxd3 {[%clk 0:00:37]} 44. Bc7 {[%clk 0:00:49]}  Bxc7 {[%clk 0:00:36]} 45. Nxc7 {[%clk 0:00:49]}  Nxb2 {[%clk 0:00:37]} 46. Ne6+ {[%clk 0:00:42]}  Kg6 {[%clk 0:00:34]} 47. Nd4 {[%clk 0:00:42]}  Nd3 {[%clk 0:00:29]} 48. Nc6 {[%clk 0:00:41]}  Nc5 {[%clk 0:00:27]} 49. Bc2 {[%clk 0:00:40]}  Nb7 {[%clk 0:00:23]} 50. e5+ {[%clk 0:00:38]}  Kf7 {[%clk 0:00:23]} 51. Bb3+ {[%clk 0:00:36]}  Kg6 {[%clk 0:00:22]} 52. e6 {[%clk 0:00:36]}  Nd6 {[%clk 0:00:22]} 53. Nxa5 {[%clk 0:00:34]}  f5 {[%clk 0:00:22]} 54. Nc4 {[%clk 0:00:32]}  Nb7 {[%clk 0:00:12]} 55. a5 {[%clk 0:00:31]}  Nxa5 {[%clk 0:00:12]} 56. Nxa5 {[%clk 0:00:31]}  Kf6 {[%clk 0:00:13]} 1-0


[Site "https://www.chess.com"]